bitfinex/quotes_SOLUSD_20240705
["timestamp","ask_amount","ask_price","bid_price","bid_amount"]
[1720157484160,0.79032641,126.54,126.48,6.2862]
[1720157484349,36.17,126.51,126.46,16.4023]
[1720157487850,8.2755321,126.52,126.45,6.3941]
[1720157488162,100.0,126.53,126.45,6.3941]
[1720157488367,8.27151485,126.52,126.45,6.3941]
[1720157488868,100.0,126.51,126.45,6.3941]
[1720157489070,100.0,126.53,126.45,6.3941]
[1720157490148,0.79032641,126.54,126.45,6.3941]
[1720157490663,100.0,126.53,126.45,6.3941]
[1720157491349,100.0,126.51,126.45,6.3941]
[1720157491551,100.0,126.51,126.43,16.6054]
[1720157491952,6.0918,126.52,126.43,16.6054]
[1720157492165,100.0,126.53,126.43,16.6054]
[1720157492859,100.0,126.51,126.43,16.6054]
[1720157493055,100.0,126.49,126.43,16.6054]
[1720157493849,100.0,126.49,126.41,6.1095]
[1720157494166,100.0,126.47,126.38,6.3705]
[1720157494554,100.0,126.45,126.38,6.3705]
[1720157495659,100.0,126.45,126.36,16.194]
[1720157496051,100.0,126.43,126.36,16.194]
[1720157497660,100.0,126.41,126.36,16.194]
[1720157498446,100.0,126.41,126.33,22.8301]
[1720157498671,100.0,126.39,126.33,22.8301]
[1720157499869,100.0,126.41,126.33,22.8301]
[1720157500050,100.0,126.39,126.33,22.8301]
[1720157500249,100.0,126.39,126.31,0.1]
[1720157500469,6.22045783,126.47,126.27,0.8515127]
[1720157500470,40.63,126.33,126.27,0.8515127]
[1720157500669,40.63,126.29,126.27,0.8515127]
[1720157500874,0.79032641,126.28,126.27,0.8515127]
[1720157502965,0.96032641,126.28,126.27,0.8515127]
[1720157503953,0.79032641,126.28,126.27,0.8515127]
[1720157504548,5.72980991,126.37,126.27,16.9721127]
[1720157504755,40.63,126.42,126.27,16.9721127]
[1720157504973,40.63,126.42,126.28,28.0884]
[1720157505173,100.0,126.41,126.28,20.17]
[1720157505473,100.0,126.45,126.31,7.9165]
[1720157505772,100.0,126.45,126.32,20.0]
[1720157505964,100.0,126.43,126.32,20.17]
[1720157506156,100.0,126.43,126.32,0.17]
[1720157506362,100.0,126.41,126.3,20.0]
[1720157506760,100.0,126.39,126.3,20.0]
[1720157506950,100.0,126.39,126.29,6.5993]
[1720157506951,100.0,126.42,126.29,6.5993]
[1720157507155,100.0,126.42,126.3,0.17]
[1720157507571,58.68914715,126.44,126.29,6.4293]
[1720157507572,100.0,126.4,126.29,6.4293]
[1720157507768,100.0,126.37,126.27,16.9721127]
[1720157507970,100.0,126.36,126.27,16.9721127]
[1720157508174,40.63,126.38,126.27,16.9721127]
[1720157508175,100.0,126.34,126.27,16.9721127]
[1720157508357,40.63,126.38,126.27,16.9721127]
[1720157508358,100.0,126.36,126.27,16.9721127]
[1720157508557,100.0,126.34,126.27,16.9721127]
[1720157509580,40.63,126.38,126.27,16.9721127]
[1720157509758,150.55367661,126.39,126.27,16.9721127]
[1720157509962,100.0,126.36,126.27,16.9721127]
[1720157510158,100.0,126.34,126.27,16.9721127]
[1720157510574,100.0,126.38,126.27,16.9721127]
[1720157510782,100.0,126.38,126.28,0.17]
[1720157511079,100.0,126.36,126.27,16.9721127]
[1720157511459,100.0,126.39,126.27,16.9721127]
[1720157511782,100.0,126.39,126.28,0.17]
[1720157512876,146.15568798,126.41,126.28,0.17]
[1720157513063,100.0,126.36,126.27,16.9721127]
[1720157514091,100.0,126.33,126.27,16.9721127]
[1720157514266,100.0,126.35,126.27,16.9721127]
[1720157514466,100.0,126.32,126.27,16.9721127]
[1720157516277,100.0,126.34,126.27,16.9721127]
[1720157516657,108.26775945,126.34,126.27,16.9721127]
[1720157516866,8.26775945,126.34,126.27,16.9721127]
[1720157518783,100.0,126.32,126.27,16.9721127]
[1720157519663,8.26775945,126.34,126.27,16.9721127]
[1720157519878,108.26775945,126.34,126.27,16.9721127]
[1720157520273,100.0,126.32,126.27,16.9721127]
[1720157520474,100.0,126.32,126.27,0.8515127]
[1720157520876,0.79195375,126.28,126.27,0.8515127]
[1720157522964,8.26775945,126.34,126.27,0.8515127]
[1720157523387,100.0,126.32,126.27,0.8515127]
[1720157524371,8.26775945,126.34,126.27,0.8515127]
[1720157524372,108.26775945,126.34,126.27,0.8515127]
[1720157524573,100.0,126.32,126.27,0.8515127]
[1720157524778,100.0,126.3,126.27,0.8515127]
[1720157525686,100.0,126.28,126.27,0.8515127]
[1720157526680,100.0,126.26,126.21,0.3066815]
[1720157527016,100.0,126.24,126.21,0.3066815]
[1720157527313,8.44455443,126.28,126.21,0.3066815]
[1720157527314,100.0,126.22,126.21,0.3066815]
[1720157530436,100.0,126.26,126.21,0.3066815]
[1720157530644,100.0,126.23,126.21,0.3066815]
[1720157531013,0.17,126.25,126.21,0.3066815]
[1720157531318,40.63,126.27,126.21,0.3066815]
[1720157531319,100.0,126.23,126.21,0.3066815]
[1720157532436,0.17,126.22,126.21,0.3066815]
[1720157532634,100.0,126.21,126.13,15.3181]
[1720157533312,0.17,126.2,126.13,15.3181]
[1720157533714,100.0,126.21,126.13,15.3181]
[1720157534637,105.60068605,126.23,126.13,15.3181]
[1720157534842,0.17,126.22,126.13,15.3181]
[1720157535521,100.0,126.2,126.13,15.3181]
[1720157538841,100.0,126.18,126.12,6.5925]
[1720157539039,100.0,126.16,126.11,0.14698618]
[1720157539739,100.0,126.14,126.11,0.14698618]
[1720157539916,100.17,126.16,126.11,0.14698618]
[1720157540118,100.0,126.16,126.11,0.14698618]
[1720157540311,100.0,126.12,126.11,0.14698618]
[1720157540514,100.0,126.14,126.11,0.14698618]
[1720157540747,0.17,126.13,126.11,0.14698618]
[1720157541052,100.79295853,126.12,126.11,0.14698618]
[1720157541339,0.79295853,126.12,126.11,0.14698618]
[1720157542311,100.96295853,126.12,126.11,0.14698618]
[1720157542533,100.79295853,126.12,126.11,0.14698618]
[1720157543729,100.96295853,126.12,126.11,0.14698618]
[1720157544145,100.96295853,126.12,126.06,0.03]
[1720157544146,100.0,126.09,126.06,0.03]
[1720157544725,100.0,126.11,126.06,0.03]
[1720157544923,100.0,126.09,126.06,0.03]
[1720157546149,100.0,126.09,126.07,0.03]
[1720157546543,100.0,126.09,126.08,0.03]
[1720157546721,100.0,126.11,126.08,0.03]
[1720157546927,100.0,126.11,126.03,0.03]
[1720157547249,100.0,126.09,126.03,0.03]
[1720157548129,0.17,126.1,126.03,0.03]
[1720157548328,100.0,126.11,126.03,0.03]
[1720157549038,8.28289757,126.1,126.03,0.03]
[1720157549435,100.0,126.09,126.03,0.03]
[1720157549831,8.28289757,126.1,126.03,0.03]
[1720157550236,0.79295853,126.12,126.03,0.03]
[1720157550760,0.79295853,126.12,126.03,0.2]
[1720157550933,0.79295853,126.12,126.04,22.334]
[1720157551267,0.79295853,126.12,126.04,30.2978]
[1720157551453,0.79295853,126.12,126.05,0.17]
[1720157551755,0.79295853,126.12,126.06,0.03]
[1720157551927,0.79295853,126.12,126.07,16.4199]
[1720157552429,100.0,126.2,126.09,6.2272]
[1720157552630,8.28192625,126.19,126.09,6.2272]
[1720157553348,8.28192625,126.19,126.1,16.769]
[1720157554149,116.4199,126.26,126.1,16.769]
[1720157554454,100.0,126.24,126.11,27.9294]
[1720157554755,100.0,126.24,126.12,0.17]
[1720157555433,8.28001449,126.25,126.12,0.17]
[1720157555434,100.0,126.22,126.12,0.17]
[1720157555844,8.28001449,126.25,126.13,22.0305]
[1720157555845,108.28001449,126.25,126.13,22.0305]
[1720157556046,108.28001449,126.25,126.14,0.17]
[1720157556643,8.28001449,126.25,126.14,0.17]
[1720157557237,105.76949732,126.27,126.14,0.17]
[1720157557539,8.27754109,126.26,126.14,28.0976]
[1720157558028,8.27754109,126.26,126.17,14.0229]
[1720157558235,100.0,126.29,126.18,0.17]
[1720157558447,40.63,126.3,126.18,0.17]
[1720157558448,8.27512109,126.27,126.18,0.17]
[1720157558752,651.88522896,127.58,126.19,24.555]
[1720157558753,100.0,126.33,126.19,24.555]
[1720157558931,7.9262,126.34,126.21,6.2406]
[1720157559130,8.27292329,126.33,126.22,0.17]
[1720157559654,8.27292329,126.33,126.23,16.3788]
[1720157560035,8.27292329,126.33,126.24,0.17]
[1720157560947,8.27292329,126.33,126.24,6.4144]
[1720157561351,100.0,126.37,126.24,6.4144]
[1720157561537,8.26982569,126.35,126.24,6.4144]
[1720157563769,140.73,126.39,126.26,7.9201]
[1720157564056,8.26575775,126.37,126.27,0.17]
[1720157564947,8.26575775,126.37,126.26,20.17]
[1720157565452,8.26575775,126.37,126.27,22.1383]
[1720157565650,0.1,126.39,126.29,22.1383]
[1720157565848,0.1,126.39,126.3,0.17]
[1720157568440,0.1,126.39,126.3,20.17]
[1720157569044,0.1,126.39,126.3,28.0874]
[1720157569247,0.1,126.39,126.3,20.17]
[1720157569455,0.1,126.39,126.3,0.17]
[1720157570371,0.1,126.49,126.33,15.949]
[1720157570588,0.1,126.49,126.39,7.9117]
[1720157570854,0.1,126.49,126.38,15.949]
[1720157570855,0.1,126.49,126.4,1.7436]
[1720157571550,0.1,126.49,126.4,1.5736]
[1720157572456,0.1,126.49,126.41,0.17]
[1720157573745,0.1,126.49,126.4,1.5736]
[1720157574160,0.1,126.49,126.41,0.17]
[1720157575042,0.1,126.49,126.4,1.5736]
[1720157576447,100.1,126.49,126.4,1.5736]
[1720157576750,100.8515127,126.46,126.38,15.949]
[1720157576952,0.8515127,126.46,126.38,15.949]
[1720157578661,0.17,126.45,126.36,6.0976]
[1720157579955,0.8515127,126.46,126.36,6.0976]
[1720157580464,0.8515127,126.46,126.36,14.0113]
[1720157580846,0.8515127,126.46,126.37,8.0832]
[1720157581046,0.8515127,126.46,126.38,15.9398]
[1720157583264,0.8515127,126.46,126.39,6.3733]
[1720157583441,0.8515127,126.46,126.39,14.4552]
[1720157583643,0.8515127,126.46,126.39,6.5433]
[1720157583855,0.8515127,126.46,126.39,6.3733]
[1720157584945,47.9467127,126.46,126.34,22.6108]
[1720157585142,100.17,126.45,126.34,22.6108]
[1720157585346,100.0,126.43,126.34,22.6108]
[1720157585861,0.17,126.42,126.34,22.6108]
[1720157586064,100.0,126.41,126.34,22.6108]
[1720157586457,0.17,126.4,126.34,22.6108]
[1720157586644,0.17,126.4,126.34,6.3044]
[1720157586848,0.17,126.4,126.3,15.3133]
[1720157587054,100.0,126.39,126.3,15.3133]
[1720157587349,0.17,126.38,126.3,15.3133]
[1720157587549,100.0,126.37,126.3,15.3133]
[1720157588265,100.0,126.37,126.27,6.2456]
[1720157588465,100.0,126.35,126.27,6.2456]
[1720157588673,0.17,126.34,126.27,6.2456]
[1720157589166,100.0,126.33,126.25,15.4498]
[1720157590166,0.17,126.34,126.25,15.4498]
[1720157590463,108.26259662,126.33,126.25,15.4498]
[1720157591468,8.26259662,126.33,126.25,15.4498]
[1720157591667,7.66953707,126.37,126.25,15.4498]
[1720157591668,100.0,126.37,126.25,23.3705]
[1720157591863,100.0,126.37,126.25,23.3704]
[1720157592089,8.26120351,126.35,126.25,23.3704]
[1720157592268,8.26120351,126.35,126.25,15.4498]
[1720157594057,108.26120351,126.35,126.25,15.4498]
[1720157594369,0.17,126.34,126.25,15.4498]
[1720157595274,8.26120351,126.35,126.25,15.4498]
[1720157596358,8.26120351,126.35,126.25,23.37]
[1720157596667,8.31953707,126.39,126.29,6.3731]
[1720157596969,0.8515127,126.46,126.29,6.3731]
[1720157596970,100.0,126.43,126.31,15.1509]
[1720157597476,8.25689506,126.42,126.31,15.1509]
[1720157598055,54.57133885,126.42,126.31,15.1509]
[1720157598355,100.0,126.38,126.31,15.1509]
[1720157599252,0.17,126.37,126.31,15.1509]
[1720157599657,10.18181298,126.41,126.31,15.1509]
[1720157599979,140.63,126.45,126.31,15.1509]
[1720157600287,100.0,126.42,126.31,15.1509]
[1720157600776,100.0,126.4,126.31,15.1509]
[1720157600955,0.79170296,126.33,126.31,15.1509]
[1720157602961,0.79170296,126.33,126.29,6.3731]
[1720157614781,0.79170296,126.33,126.27,16.0537]
[1720157615368,100.79170296,126.33,126.27,16.0537]
[1720157615887,0.79170296,126.33,126.27,16.0537]
[1720157621086,0.79170296,126.28,126.27,16.0537]
[1720157621283,40.63,126.36,126.27,16.0537]
[1720157621796,36.21,126.34,126.27,16.0537]
[1720157623678,44.47107568,126.34,126.27,16.0537]
[1720157626098,36.21,126.34,126.27,16.0537]
[1720157629201,100.0,126.33,126.27,16.0537]
[1720157630084,36.21,126.31,126.27,16.0537]
[1720157630891,36.21,126.34,126.27,16.0537]
[1720157631996,136.21,126.34,126.27,16.0537]
[1720157632195,36.21,126.34,126.27,16.0537]
[1720157634487,36.21,126.34,126.27,23.9731]
[1720157634686,36.21,126.34,126.28,0.17]
[1720157635187,36.21,126.34,126.27,16.0537]
[1720157640988,0.79195375,126.28,126.27,16.0537]
[1720157641195,36.21,126.34,126.27,16.0537]
[1720157642023,136.21,126.34,126.27,16.0537]
[1720157642613,36.21,126.34,126.27,16.0537]
[1720157643523,100.0,126.36,126.27,16.0537]
[1720157643524,36.21,126.36,126.27,16.0537]
[1720157643693,36.21,126.38,126.29,6.4219]
[1720157643890,116.0537,126.42,126.31,15.9971]
[1720157644190,5.6399337,126.41,126.35,16.1646]
[1720157644393,36.21,126.43,126.35,16.1646]
[1720157645213,5.64291958,126.42,126.35,16.1646]
[1720157645400,0.8515127,126.46,126.35,16.1646]
[1720157645587,0.8515127,126.46,126.36,0.17]
[1720157645588,41.85452277,126.45,126.36,0.17]
[1720157645795,5.64452277,126.44,126.36,0.17]
[1720157646103,36.21,126.43,126.35,16.1646]
[1720157646296,5.64361404,126.42,126.35,16.1646]
[1720157646500,36.21,126.43,126.35,16.1646]
[1720157647601,36.21,126.41,126.35,16.1646]
[1720157648515,36.21,126.43,126.35,16.1646]
[1720157649321,36.21,126.43,126.36,0.17]
[1720157649641,36.21,126.45,126.36,0.17]
[1720157650003,36.21,126.45,126.36,28.0838]
[1720157651222,36.21,126.45,126.37,6.6319]
[1720157651437,0.8515127,126.46,126.38,0.17]
[1720157651604,0.8515127,126.46,126.39,16.3881]
[1720157652814,0.8515127,126.46,126.4,0.17]
[1720157653206,0.8515127,126.46,126.41,6.1284]
[1720157656016,36.21,126.45,126.41,6.1284]
[1720157657219,36.21,126.45,126.39,16.3881]
[1720157657715,100.0,126.44,126.39,16.3881]
[1720157657922,36.21,126.43,126.39,16.3881]
[1720157659537,36.21,126.45,126.39,16.3881]
[1720157661143,0.79120184,126.4,126.39,16.3881]
[1720157666747,0.8515127,126.46,126.39,16.3881]
[1720157666956,0.8515127,126.46,126.39,16.5581]
[1720157667131,0.8515127,126.46,126.4,0.17]
[1720157667453,137.0615127,126.46,126.39,16.3881]
[1720157668269,136.21,126.44,126.39,16.3881]
[1720157668435,0.8515127,126.46,126.39,16.3881]
[1720157668643,36.21,126.45,126.39,16.3881]
[1720157669139,0.17,126.44,126.39,16.3881]
[1720157670543,0.17,126.44,126.38,6.2121]
[1720157670748,36.21,126.41,126.34,6.5292]
[1720157671457,36.21,126.41,126.32,15.7164]
[1720157671458,36.61,126.37,126.32,15.7164]
[1720157672460,0.4,126.37,126.32,15.7164]
[1720157674350,0.4,126.37,126.33,0.17]
[1720157675337,0.4,126.37,126.32,15.7164]
[1720157677167,36.21,126.38,126.32,15.7164]
[1720157677376,36.21,126.41,126.33,0.17]
[1720157677535,36.21,126.41,126.33,8.0856]
[1720157677741,44.46857703,126.43,126.33,8.0856]
[1720157677972,44.46857703,126.43,126.33,0.17]
[1720157678863,36.21,126.41,126.32,15.7164]
[1720157679161,36.21,126.38,126.32,15.7164]
[1720157680266,36.21,126.38,126.32,15.4064]
[1720157680851,145.54364872,126.42,126.32,15.4064]
[1720157680852,36.21,126.4,126.32,15.4064]
[1720157681096,0.79164028,126.33,126.32,15.4064]
[1720157681258,0.79164028,126.33,126.32,15.5764]
[1720157681963,36.21,126.4,126.32,15.5764]
[1720157682161,136.21,126.42,126.32,15.5764]
[1720157682584,36.21,126.4,126.32,15.5764]
[1720157683078,136.21,126.4,126.32,15.5764]
[1720157683299,36.21,126.38,126.32,15.4064]
[1720157683589,136.21,126.38,126.32,15.4064]
[1720157683786,0.17,126.37,126.31,6.5292]
[1720157683993,136.21,126.36,126.31,6.5292]
[1720157684367,136.21,126.36,126.3,15.0744]
[1720157685067,44.46302655,126.36,126.3,15.0744]
[1720157686686,36.21,126.38,126.3,15.0744]
[1720157686975,44.46131646,126.4,126.3,15.0744]
[1720157687186,0.32371175,126.43,126.31,6.3267]
[1720157687374,36.21,126.43,126.33,16.3237]
[1720157687569,36.21,126.43,126.34,0.17]
[1720157689767,133.50943814,126.45,126.34,0.17]
[1720157691365,0.17,126.44,126.34,0.17]
[1720157691773,117.58283814,126.45,126.34,0.17]
[1720157691979,8.24918942,126.45,126.35,6.4283]
[1720157692183,8.24918942,126.45,126.36,0.17]
[1720157693370,6.9665307,126.46,126.36,0.17]
[1720157693564,15.21400293,126.46,126.35,6.4283]
[1720157693769,15.21400293,126.46,126.36,0.17]
[1720157694285,9.26898493,126.46,126.36,0.17]
[1720157694985,9.09898493,126.46,126.37,16.5996]
[1720157695184,9.09898493,126.46,126.38,0.17]
[1720157695388,0.8515127,126.46,126.39,6.0436]
[1720157698074,0.8515127,126.46,126.37,16.5996]
[1720157698075,100.0,126.44,126.37,16.5996]
[1720157698280,0.17,126.43,126.37,16.5996]
[1720157698681,100.0,126.44,126.37,16.5996]
[1720157699070,0.17,126.45,126.37,16.5996]
[1720157699987,8.7592127,126.46,126.37,16.5996]
[1720157700191,7.9094,126.44,126.37,16.5996]
[1720157700377,100.0,126.45,126.37,16.5996]
[1720157700378,100.17,126.45,126.37,16.5996]
[1720157700689,108.0788,126.45,126.37,16.5996]
[1720157700894,7.909,126.44,126.37,16.5996]
[1720157701092,0.79132706,126.39,126.34,16.0679]
[1720157701270,8.70332706,126.39,126.34,16.0679]
[1720157701874,100.79132706,126.39,126.34,16.0679]
[1720157702075,7.9126,126.38,126.34,16.0679]
[1720157702271,7.9139,126.36,126.27,22.1316]
[1720157702469,7.9156,126.34,126.27,22.1316]
[1720157702684,7.9151,126.34,126.27,22.1316]
[1720157702888,100.17,126.35,126.27,22.1316]
[1720157703082,0.17,126.34,126.27,22.1316]
[1720157703278,107.9145,126.35,126.27,22.1316]
[1720157703486,100.0,126.35,126.27,22.1316]
[1720157703997,7.9132,126.37,126.27,22.1316]
[1720157704189,7.9133,126.37,126.28,0.17]
[1720157704500,8.70372706,126.39,126.28,0.17]
[1720157705092,0.79132706,126.39,126.28,8.0887]
[1720157705489,0.79132706,126.39,126.28,0.17]
[1720157705695,100.0,126.38,126.27,22.1316]
[1720157705992,7.9132,126.38,126.27,22.1316]
[1720157706688,8.0838,126.37,126.27,22.1316]
[1720157706905,7.9127,126.38,126.27,22.1316]
[1720157707281,9.03747178,126.39,126.28,0.17]
[1720157707604,9.03747178,126.39,126.28,20.17]
[1720157707982,16.94947178,126.39,126.28,20.17]
[1720157708184,7.9133,126.37,126.28,20.17]
[1720157708377,7.9127,126.38,126.28,20.17]
[1720157708583,9.03747178,126.39,126.29,15.7395]
[1720157708784,0.79132706,126.39,126.31,6.4713]
[1720157709003,0.79132706,126.39,126.32,0.17]
[1720157709712,8.23971128,126.42,126.36,7.9138]
[1720157709877,7.9064,126.48,126.35,15.3371]
[1720157709878,36.14,126.45,126.38,6.094]
[1720157710692,36.14,126.45,126.39,16.1311]
[1720157711894,16.14222186,126.48,126.39,16.1311]
[1720157714399,8.23582186,126.48,126.39,16.1311]
[1720157714699,0.1,126.49,126.4,20.0]
[1720157714879,0.1,126.49,126.41,0.17]
[1720157715600,0.1,126.49,126.42,6.4297]
[1720157715779,0.1,126.49,126.43,20.17]
[1720157715991,0.1,126.49,126.42,6.4297]
[1720157716402,0.1,126.49,126.43,0.17]
[1720157716799,0.1,126.49,126.42,6.4297]
[1720157717202,0.1,126.49,126.43,0.17]
[1720157718498,0.1,126.49,126.42,6.4297]
[1720157718908,7.9064,126.48,126.42,6.4297]
[1720157719099,0.1,126.49,126.42,6.4297]
[1720157719500,0.1,126.49,126.43,0.17]
[1720157721006,0.79095152,126.45,126.43,0.17]
[1720157723127,0.1,126.49,126.44,15.2383]
[1720157723420,0.1,126.49,126.45,20.0]
[1720157724802,0.1,126.49,126.46,0.17]
[1720157725026,0.1,126.49,126.47,6.3104]
[1720157725529,0.1,126.49,126.48,20.17]
[1720157725742,0.1,126.49,126.47,6.3104]
[1720157726041,0.1,126.49,126.44,15.2383]
[1720157726408,0.1,126.49,126.44,23.147]
[1720157726717,0.1,126.49,126.44,15.2383]
[1720157726916,0.1,126.49,126.46,7.9075]
[1720157727117,0.1,126.49,126.47,7.907]
[1720157727319,0.1,126.49,126.48,0.17]
[1720157727920,0.1,126.49,126.47,20.17]
[1720157728105,0.1,126.49,126.47,0.17]
[1720157728310,0.1,126.49,126.46,8.0773]
[1720157728627,0.1,126.49,126.47,20.0]
[1720157728826,0.1,126.49,126.48,0.17]
[1720157730313,0.1,126.49,126.47,20.17]
[1720157730710,14.99806044,126.58,126.48,6.546]
[1720157730907,14.99806044,126.58,126.49,20.17]
[1720157731119,9.08780487,126.58,126.49,20.17]
[1720157731424,0.8515127,126.58,126.5,15.4712]
[1720157731633,0.8515127,126.58,126.51,0.17]
[1720157732341,0.8515127,126.58,126.53,7.9031]
[1720157732634,0.8515127,126.58,126.51,0.17]
[1720157732928,0.8515127,126.58,126.51,20.17]
[1720157733125,0.8515127,126.58,126.52,7.9037]
[1720157733329,0.8515127,126.58,126.53,0.17]
[1720157733831,0.8515127,126.58,126.52,6.4117]
[1720157734132,0.8515127,126.58,126.53,0.17]
[1720157735337,0.8515127,126.58,126.53,20.17]
[1720157736537,0.8515127,126.58,126.53,28.0727]
[1720157736734,0.8515127,126.58,126.53,28.0732]
[1720157736917,0.8515127,126.58,126.5,21.42602311]
[1720157737121,0.8515127,126.58,126.5,15.4712]
[1720157738131,136.05,126.55,126.46,21.3234]
[1720157738434,36.05,126.51,126.42,21.3234]
[1720157739029,36.05,126.51,126.42,29.2334]
[1720157739223,36.05,126.51,126.42,21.3234]
[1720157739434,43.9547,126.51,126.42,21.3234]
[1720157739642,43.9547,126.51,126.39,6.5247]
[1720157739643,107.9052,126.5,126.39,6.5247]
[1720157739831,36.05,126.49,126.39,14.4365]
[1720157740020,36.05,126.49,126.4,7.9112]
[1720157740453,36.05,126.49,126.39,14.4366]
[1720157740624,36.05,126.51,126.39,6.5247]
[1720157740939,7.9052,126.5,126.39,42.5747]
[1720157741236,0.79120184,126.4,126.39,6.5247]
[1720157741436,0.79120184,126.4,126.39,26.5247]
[1720157741815,0.79120184,126.4,126.39,34.4367]
[1720157742248,0.79120184,126.4,126.39,26.5247]
[1720157742546,0.79120184,126.4,126.39,26.6947]
[1720157744040,0.79120184,126.4,126.39,34.6067]
[1720157744444,0.79120184,126.4,126.39,26.6947]
[1720157744843,0.79120184,126.4,126.39,34.6067]
[1720157745941,7.905,126.51,126.39,26.6947]
[1720157746125,7.9037,126.53,126.41,7.9107]
[1720157746333,7.904,126.52,126.42,20.17]
[1720157746850,7.9054,126.5,126.42,20.0]
[1720157747059,7.9054,126.5,126.4,20.0]
[1720157747263,7.906,126.49,126.41,0.17]
[1720157747455,7.906,126.49,126.4,20.0]
[1720157747737,27.64725618,126.54,126.36,6.088]
[1720157747738,116.0605,126.47,126.36,6.088]
[1720157748143,0.17,126.46,126.36,6.088]
[1720157748450,16.0605,126.47,126.38,7.9124]
[1720157749046,16.0605,126.47,126.37,7.9131]
[1720157749240,16.0605,126.47,126.38,27.9125]
[1720157749447,16.0605,126.47,126.38,20.17]
[1720157749849,16.0605,126.47,126.38,0.17]
[1720157750556,16.0605,126.47,126.38,8.082]
[1720157750731,16.0605,126.47,126.39,20.0]
[1720157751130,116.0605,126.47,126.39,20.0]
[1720157751438,116.0605,126.47,126.37,20.0]
[1720157751439,16.0605,126.47,126.37,20.0]
[1720157751642,16.0605,126.47,126.38,0.17]
[1720157752040,16.0605,126.47,126.38,8.0824]
[1720157752270,16.0605,126.47,126.39,20.0]
[1720157752433,16.0605,126.47,126.38,0.17]
[1720157752641,16.0605,126.47,126.38,8.0825]
[1720157752842,16.0605,126.47,126.39,20.0]
[1720157753035,16.0605,126.47,126.38,0.17]
[1720157753965,16.0605,126.47,126.38,8.0824]
[1720157754263,16.0605,126.47,126.39,20.0]
[1720157754464,16.0605,126.47,126.4,0.17]
[1720157754658,16.0605,126.47,126.38,0.17]
[1720157755245,16.0605,126.47,126.37,27.9131]
[1720157755246,100.0,126.46,126.37,20.0]
[1720157755469,100.17,126.46,126.37,20.0]
[1720157755759,108.0777,126.46,126.37,20.0]
[1720157755971,108.0777,126.46,126.34,23.3251]
[1720157756150,7.9083,126.45,126.34,15.4102]
[1720157756346,100.17,126.46,126.32,6.4658]
[1720157756567,6.2862,126.43,126.32,14.3816]
[1720157756957,6.2862,126.43,126.32,6.4658]
[1720157757178,12.73245802,126.43,126.32,6.4658]
[1720157757667,15.13,126.41,126.31,15.0672]
[1720157757974,100.0,126.39,126.29,263.2177]
[1720157758196,100.0,126.39,126.29,7.9177]
[1720157759544,100.0,126.39,126.27,7.9191]
[1720157759545,107.912,126.39,126.27,7.9191]
[1720157759857,100.0,126.39,126.29,7.9177]
[1720157760047,6.5321,126.38,126.29,7.9177]
[1720157760277,6.5321,126.38,126.25,41.27298676]
[1720157760481,6.5321,126.38,126.3,7.917]
[1720157760663,6.5321,126.38,126.3,7.9174]